bitfinex/quotes_ETHUSD_20220105
["timestamp","ask_amount","ask_price","bid_price","bid_amount"]
[1641422846056,1.41269,3540.8,3539.2,1.41257]
[1641422846057,1.97802328,3541.5,3540.0,2.99829473]
[1641422846452,0.00511581,3540.7,3540.0,2.99829473]
[1641422846949,0.00454739,3540.6,3540.0,2.99829473]
[1641422847151,0.00454739,3540.6,3540.1,16.71]
[1641422847349,0.00397897,3540.5,3540.1,16.71]
[1641422847596,0.00397897,3540.5,3540.1,16.46]
[1641422847802,0.00341054,3540.4,3540.2,16.46]
[1641422848201,0.00341054,3540.4,3539.2,0.7062]
[1641422848202,14.2925,3540.2,3538.5,4.56758]
[1641422848402,0.8425,3540.0,3538.5,4.56758]
[1641422848605,0.01234312,3539.5,3538.6,5.65772108]
[1641422849100,0.01234312,3539.5,3538.7,0.00625266]
[1641422849101,0.8425,3538.9,3538.7,0.00625266]
[1641422849502,0.8425,3538.9,3538.6,0.15715266]
[1641422851108,1.1755,3538.9,3538.6,0.15715266]
[1641422853261,1.5085,3538.9,3538.6,0.15715266]
[1641422854761,1.5085,3538.9,3538.6,0.86364266]
[1641422855395,1.8415,3538.9,3538.6,0.86364266]
[1641422856599,1.81307,3538.9,3538.6,0.86364266]
[1641422857197,1.81307,3538.9,3538.7,2.92072313]
[1641422857397,2.14607,3538.9,3538.7,2.90549087]
[1641422857598,2.14607,3538.9,3538.6,0.86364266]
[1641422857797,2.14607,3538.9,3538.7,19.6027745]
[1641422857998,2.14607,3538.9,3538.7,2.8927745]
[1641422858198,0.17550685,3540.6,3539.4,0.70638]
[1641422858397,0.333,3540.7,3539.2,2.99080648]
[1641422858598,0.333,3540.7,3539.2,2.87257429]
[1641422858852,0.333,3540.7,3539.2,2.81612689]
[1641422859049,0.333,3540.7,3539.2,2.80772353]
[1641422859252,0.283,3540.7,3539.6,1.41231]
[1641422859452,0.616,3540.7,3539.9,0.70632]
[1641422859855,0.616,3540.7,3540.0,2.85810605]
[1641422860054,0.616,3540.7,3539.8,3.07484769]
[1641422860454,0.616,3540.7,3540.2,0.70616]
[1641422861365,0.616,3540.7,3540.2,2.0773294]
[1641422861554,0.949,3540.7,3540.2,2.0773294]
[1641422863508,1.282,3540.7,3540.2,2.0773294]
[1641422864311,1.282,3540.7,3540.2,0.70616]
[1641422865211,1.282,3540.7,3540.3,1.3711694]
[1641422865613,1.615,3540.7,3540.3,1.3711694]
[1641422866452,0.70633,3540.5,3540.3,1.3711694]
[1641422866649,0.70633,3540.5,3540.1,1.41231]
[1641422866852,0.70633,3540.5,3539.7,1.41271]
[1641422866853,0.00568423,3540.4,3539.7,1.41271]
[1641422867252,4.415,3540.7,3539.7,1.41271]
[1641422867253,1.41798581,3540.3,3539.7,1.41271]
[1641422867451,0.70644,3540.1,3539.2,1.3711694]
[1641422867652,0.70644,3540.1,3539.4,1.41282]
[1641422867854,0.00341054,3540.0,3539.4,1.41282]
[1641422868258,0.333,3540.3,3538.8,1.3711694]
[1641422868259,0.00284212,3539.9,3538.8,1.3711694]
[1641422868457,0.70661,3539.5,3538.8,1.3711694]
[1641422868754,0.70661,3539.5,3538.8,0.00817467]
[1641422868956,16.71,3539.7,3538.4,5.444e-05]
[1641422868957,129.5517,3539.4,3538.4,5.444e-05]
[1641422869156,129.5517,3539.4,3537.6,2.9780814]
[1641422869157,129.55,3538.8,3537.6,2.9780814]
[1641422869357,129.55,3538.8,3536.0,6.31576711]
[1641422869358,1.41378,3538.5,3537.5,2.71221922]
[1641422869555,1.41378,3538.5,3538.1,0.00454739]
[1641422869756,0.70689,3538.4,3538.1,0.00454739]
[1641422871800,1.03989,3538.4,3538.1,0.00454739]
[1641422873951,1.37289,3538.4,3538.1,0.00454739]
[1641422874957,1.292998,3538.4,3538.1,0.00454739]
[1641422876159,1.625998,3538.4,3538.1,0.00454739]
[1641422878215,1.958998,3538.4,3538.1,0.00454739]
[1641422878414,1.332,3538.4,3538.1,0.00454739]
[1641422879420,0.70678,3538.3,3538.1,0.00454739]
[1641422880221,1.03978,3538.3,3538.1,0.00454739]
[1641422880421,1.03978,3538.3,3538.1,1.37323594]
[1641422880820,1.03978,3538.3,3538.2,0.00397896]
[1641422882255,0.666,3538.3,3538.2,0.00397896]
[1641422883156,0.666,3538.3,3538.2,1.37266751]
[1641422884056,0.666,3538.3,3538.2,0.00397896]
[1641422884255,0.999,3538.3,3538.2,0.00397896]
[1641422885901,0.999,3538.3,3538.2,0.71058016]
[1641422886103,1.332,3538.4,3538.2,12.41058016]
[1641422886302,0.333,3538.3,3538.2,3.4535904]
[1641422886501,0.333,3538.3,3538.2,6.41422545]
[1641422886702,1.332,3538.4,3538.3,11.7]
[1641422886901,1.332,3538.4,3538.3,14.60823201]
[1641422887101,0.70654,3540.0,3538.3,14.62379442]
[1641422887311,0.5,3540.1,3538.8,1.41293]
[1641422887606,0.00170527,3539.2,3538.8,1.41293]
[1641422888005,0.00113685,3539.1,3538.8,1.41293]
[1641422888209,0.00113685,3539.1,3538.9,4.24310273]
[1641422888407,0.333,3539.1,3539.0,14.73788674]
[1641422889046,0.333,3540.3,3539.0,14.73788674]
[1641422889247,0.333,3540.3,3539.5,2.8251767]
[1641422889447,4.79226163,3541.3,3540.0,0.01251035]
[1641422889648,1.28273723,3541.8,3540.7,11.65]
[1641422889853,0.0001,3541.6,3540.7,11.65]
[1641422890048,7.67241941,3542.4,3541.6,11.65]
[1641422890248,7.67241941,3542.4,3542.0,0.70574]
[1641422890455,7.67241941,3542.4,3541.9,2.8229782]
[1641422890456,7.98710272,3542.9,3542.3,0.01264281]
[1641422890457,27.18296941,3542.5,3542.3,0.01264281]
[1641422890850,0.01250531,3542.4,3542.3,0.01264281]
[1641422891051,15.90679342,3542.5,3542.4,11.65]
[1641422891251,15.90679342,3542.5,3542.3,0.0781918]
[1641422891454,10.26159342,3542.5,3542.4,11.71554899]
[1641422892251,4.61673342,3542.5,3542.4,14.6896362]
[1641422892455,4.94973342,3542.5,3542.4,11.71554899]
[1641422892707,4.94973342,3542.5,3542.4,14.76236249]
[1641422893411,11.77431846,3545.1,3542.9,1.41111]
[1641422893613,3.78721574,3545.1,3543.0,2.98371462]
[1641422893812,3.78721574,3545.1,3542.9,0.70554]
[1641422894114,3.78721574,3545.1,3543.2,1.4110402]
[1641422894414,3.78721574,3545.1,3543.3,0.00113685]
[1641422894415,1.03876,3543.8,3543.3,0.00113685]
[1641422894615,0.666,3543.6,3543.3,0.00113685]
[1641422894811,0.666,3543.6,3542.7,0.00454739]
[1641422895611,0.666,3543.6,3542.4,0.00625266]
[1641422896211,0.616,3543.6,3542.4,0.00625266]
[1641422896656,0.949,3543.6,3542.4,0.00625266]
[1641422897860,0.949,3543.6,3542.2,1.3545452]
[1641422897861,1.41191,3543.3,3542.3,0.00682108]
[1641422898063,129.45,3543.2,3541.7,2.72801056]
[1641422898261,19.73364104,3543.1,3540.9,7.54062889]
[1641422898462,0.70622,3542.0,3541.8,4.212e-05]
[1641422898859,0.70622,3542.0,3540.9,4.5192209]
[1641422898860,0.70622,3542.0,3541.0,0.00458951]
[1641422899060,0.01268177,3542.5,3540.8,1.041e-05]
[1641422899061,16.71,3541.5,3540.8,1.041e-05]
[1641422899460,16.7022737,3541.5,3540.8,1.041e-05]
[1641422899860,16.7022737,3541.3,3540.9,0.00284212]
[1641422900120,122.8,3541.1,3539.3,0.01281892]
[1641422900322,21.0054109,3541.0,3539.3,0.01281892]
[1641422900517,4.3031372,3541.0,3539.4,0.00852635]
[1641422900721,4.6361372,3541.0,3539.4,0.00852635]
[1641422901020,0.70642,3540.6,3539.4,0.00852635]
[1641422901225,1.41295,3540.5,3539.4,0.00852635]
[1641422901822,1.41295,3540.5,3538.8,0.70644]
[1641422902027,0.333,3541.0,3540.4,0.0127472]
[1641422902226,1.0,3543.0,3540.9,0.01237111]
[1641422902424,0.333,3543.1,3542.2,0.0121669]
[1641422902625,0.0096632,3542.9,3542.2,0.0121669]
[1641422903025,0.00909478,3542.8,3542.2,0.0121669]
[1641422903225,0.00909478,3542.8,3542.0,0.70572]
[1641422903424,0.33243157,3543.0,3542.4,0.7057577]
[1641422903852,0.33243157,3543.0,3542.1,1.41492784]
[1641422903853,0.00113685,3542.9,3542.5,0.00113684]
[1641422904247,0.00113685,3542.9,3542.2,0.00284211]
[1641422904452,0.00113685,3542.9,3541.9,0.00454739]
[1641422904657,0.00113685,3542.9,3541.7,0.00568423]
[1641422904854,0.33413685,3542.9,3542.1,0.7058388]
[1641422905055,0.16616842,3543.0,3541.9,1.4116538]
[1641422905359,0.16616842,3543.0,3542.0,0.00511581]
[1641422905755,0.333,3543.8,3542.0,0.00511581]
[1641422905756,0.07986842,3543.8,3542.0,0.00511581]
[1641422905959,0.07986842,3543.8,3542.0,3.05127229]
[1641422906158,0.00341054,3543.5,3542.1,0.705847]
[1641422906358,0.00341054,3543.5,3542.1,0.71039439]
[1641422906560,0.00284212,3543.4,3542.2,0.00397896]
[1641422906959,0.70814369,3543.3,3542.2,0.00397896]
[1641422907359,0.00170527,3543.2,3542.2,0.00397896]
[1641422907606,0.69757527,3543.3,3542.2,0.00397896]
[1641422908013,0.69757527,3543.3,3542.2,0.00568423]
[1641422908417,0.64757527,3543.3,3542.2,0.00568423]
[1641422908611,0.64757527,3543.3,3542.3,1.35954149]
[1641422909014,0.64757527,3543.3,3542.4,0.00454739]
[1641422909015,17.69057527,3543.3,3542.4,0.00454739]
[1641422910217,17.69057527,3543.3,3542.3,0.00511581]
[1641422911017,1.31357527,3543.3,3542.3,0.00511581]
[1641422911217,1.31357527,3543.3,3541.7,0.00852635]
[1641422911644,0.70601,3542.5,3541.7,0.00852635]
[1641422912042,0.70601,3542.5,3541.9,1.35954149]
[1641422912446,0.70601,3542.5,3542.0,0.00682108]
[1641422913047,1.03901,3542.5,3542.0,0.00682108]
[1641422913447,1.03901,3542.5,3541.8,0.00795793]
[1641422914048,0.333,3542.5,3541.8,0.00795793]
[1641422915099,1.37202,3542.5,3541.8,0.00795793]
[1641422915508,1.41251,3542.2,3541.7,0.00852635]
[1641422916106,123.1,3542.0,3541.6,1.35954149]
[1641422916306,123.1,3542.0,3541.1,2.72326442]
[1641422916307,16.71,3541.9,3541.1,2.68340964]
[1641422916507,18.12271,3541.9,3541.4,1.3423133]
[1641422916708,1.41271,3541.9,3541.4,1.3423133]
[1641422917010,0.67787087,3541.9,3541.4,1.3423133]
[1641422917210,1.01087087,3541.9,3541.2,0.00284212]
[1641422917614,1.01087087,3541.9,3540.2,0.00852635]
[1641422917812,0.70633,3541.1,3540.2,0.00852635]
[1641422918415,0.70633,3541.1,3539.7,0.7063041]
[1641422918711,0.70633,3541.1,3539.8,0.01080005]
[1641422919160,0.70633,3541.1,3540.1,0.01229862]
[1641422919360,1.03933,3541.1,3540.1,0.01229862]
[1641422919561,1.03933,3541.1,3540.2,0.00852635]
[1641422920162,1.03933,3541.1,3539.8,0.01080005]
[1641422920362,1.03933,3541.1,3540.0,1.0]
[1641422920761,1.03933,3541.1,3540.1,0.00909478]
[1641422921362,1.37233,3541.1,3540.1,0.00909478]
[1641422921564,0.70652,3540.6,3540.1,0.00909478]
[1641422921965,17.41652,3540.6,3540.1,0.00909478]
[1641422922165,0.70652,3540.6,3540.1,0.00909478]
[1641422922825,18.82956,3540.8,3540.1,0.00909478]
[1641422922826,0.70661,3540.3,3540.1,0.00909478]
[1641422923329,139.738414,3540.2,3540.1,0.00909478]
[1641422923532,1.03961,3540.3,3540.1,0.00909478]
[1641422923930,127.36,3540.2,3540.1,0.00909478]
[1641422924130,16.71,3540.2,3540.0,1.0]
[1641422924730,0.70664,3539.4,3538.6,4.53877404]
[1641422925133,0.70664,3539.4,3539.3,2.68193195]
[1641422925433,0.70664,3539.4,3539.3,2.68647934]
[1641422925633,1.03964,3539.4,3539.3,2.68647934]
[1641422926038,1.03964,3539.4,3539.3,0.00454739]
[1641422926657,1.03964,3539.4,3539.2,2.63647934]
[1641422927258,1.03964,3539.4,3538.5,0.01280081]
[1641422927459,1.03964,3539.4,3538.6,0.7065567]
[1641422927657,0.666,3539.4,3538.6,0.71053566]
[1641422928257,0.666,3539.4,3538.6,3.71053566]
[1641422929660,1.74595,3540.3,3539.4,0.76011413]
[1641422930096,0.70648,3539.9,3539.4,0.76011413]
[1641422930502,0.00284212,3539.8,3539.4,0.76011413]
[1641422930903,0.0022737,3539.7,3539.4,0.76011413]
[1641422931105,0.70655,3539.6,3539.4,0.76011413]
[1641422931307,0.70825528,3539.6,3539.4,0.76011413]
[1641422931503,0.00113685,3539.5,3539.4,0.76011413]
[1641422932303,0.70773685,3539.5,3539.4,0.76011413]
[1641422933861,0.33413685,3539.5,3539.4,0.76011413]
[1641422935863,0.66713685,3539.5,3539.4,0.76011413]
[1641422937811,1.00013685,3539.5,3539.4,0.76011413]
[1641422939819,1.33313685,3539.5,3539.4,0.76011413]
[1641422941014,1.32913685,3539.5,3539.4,0.76011413]
[1641422941954,1.66213685,3539.5,3539.4,0.76011413]
[1641422942656,1.66213685,3539.5,3538.6,3.00397896]
[1641422942657,122.35,3539.4,3538.6,3.00397896]
[1641422942858,122.35,3539.4,3538.5,2.70267047]
[1641422942859,0.70695,3539.0,3538.5,2.70267047]
[1641422943057,0.70695,3539.0,3538.0,0.7137971]
[1641422943058,119.7,3538.8,3538.0,0.7137971]
[1641422943256,119.7,3538.8,3538.6,3.685e-05]
[1641422943560,144.7618,3538.7,3538.1,0.00287897]
[1641422943756,145.4688,3538.7,3538.0,0.7137971]
[1641422943958,0.70695,3538.4,3538.0,0.7137971]
[1641422944158,122.4,3538.3,3536.7,5.0517419]
[1641422944361,122.40113685,3538.3,3536.7,5.0517419]
[1641422944557,122.40113685,3538.3,3536.8,0.0073895]
[1641422944958,124.52213685,3538.3,3536.8,0.0073895]
[1641422945704,16.71,3538.2,3536.6,0.00852635]
[1641422945904,0.70703,3537.5,3536.6,0.00852635]
[1641422946909,0.70703,3537.5,3536.5,0.00909477]
[1641422947909,3.50703,3537.5,3536.5,0.00909477]
[1641422948109,2.61949423,3537.5,3536.5,0.00909477]
[1641422948967,3.32652423,3537.5,3536.5,0.00909477]
[1641422949164,0.90549672,3537.6,3536.5,0.00909477]
[1641422949362,0.333,3538.2,3536.6,0.01268558]
[1641422949762,0.333,3538.2,3536.7,0.00795793]
[1641422950164,0.666,3538.2,3536.7,0.00795793]
[1641422950673,0.70703,3537.4,3536.7,0.00795793]
[1641422952272,1.04003,3537.4,3536.7,0.00795793]
[1641422953508,0.691707,3537.4,3536.7,0.00795793]
[1641422954311,1.024707,3537.4,3536.7,0.00795793]
[1641422955310,1.024707,3537.4,3536.8,0.7069327]
[1641422955611,1.024707,3537.4,3536.6,0.01268558]
[1641422955612,0.666,3537.4,3536.9,0.00682108]
[1641422955911,0.666,3537.4,3536.7,0.00795793]
[1641422956348,0.999,3537.4,3536.7,0.00795793]
[1641422956555,0.999,3537.4,3536.8,0.7069258]
[1641422956755,1.65594,3537.4,3536.8,0.7069258]
[1641422956954,1.65594,3537.4,3536.9,0.00682108]
[1641422958254,1.65594,3537.4,3536.8,0.21374688]
[1641422958455,1.98894,3537.4,3536.8,0.21374688]
[1641422958655,0.0022737,3537.3,3536.8,0.21374688]
[1641422958855,0.0022737,3537.3,3536.5,1.4138318]
[1641422958856,0.70696,3537.1,3536.5,1.4138318]
[1641422959255,0.00170527,3537.2,3536.7,0.7069158]
[1641422959657,1.282,3537.4,3536.7,0.7069158]
[1641422960107,0.00113685,3537.3,3536.8,0.00170527]
[1641422960512,0.33413685,3537.3,3536.8,0.00170527]
[1641422960911,1.04105685,3537.3,3536.8,0.00170527]
[1641422961517,1.04105685,3537.3,3536.6,4.49047931]
[1641422961713,0.00227369,3537.2,3536.6,4.49047931]
[1641422962116,0.00170527,3537.1,3536.5,1.4138318]
[1641422962312,0.00170527,3537.1,3536.8,0.7069182]
[1641422962517,0.00113685,3537.0,3536.8,0.7069182]
[1641422963950,0.00113685,3537.0,3536.6,0.00113685]
[1641422964557,0.33413685,3537.0,3536.6,0.00113685]
[1641422964756,0.56809528,3537.4,3536.6,0.00113685]
[1641422964955,0.56809528,3537.4,3536.6,0.0022737]
[1641422965159,0.00113684,3537.2,3536.6,0.0022737]
[1641422965557,0.70697,3537.1,3536.6,0.0022737]
[1641422965955,0.70697,3537.1,3536.5,0.00284212]
[1641422966656,1.03997,3537.1,3536.5,0.00284212]
[1641422966858,1.03997,3537.1,3536.8,2.67280573]
[1641422967457,3.83997,3537.1,3536.8,2.67280573]
[1641422968328,3.83997,3537.1,3536.9,2.67280573]
[1641422968830,4.17297,3537.1,3536.9,2.67280573]
[1641422969227,3.466,3537.1,3536.9,2.67280573]
[1641422969429,3.466,3537.1,3537.0,2.67280573]
[1641422970429,3.466,3537.1,3536.5,0.00284212]
[1641422970832,4.50598,3537.1,3536.5,0.00284212]
[1641422971032,4.50598,3537.1,3536.6,0.7069732]
[1641422971476,4.50598,3537.1,3536.8,2.68500651]
[1641422972277,4.50598,3537.1,3537.0,2.68500651]
[1641422972878,4.83898,3537.1,3537.0,2.68500651]
[1641422974578,4.83898,3537.1,3536.7,0.00170528]
[1641422974979,5.17198,3537.1,3536.5,0.00284212]
[1641422975211,5.17198,3537.1,3536.4,1.30194212]
[1641422975415,0.70708,3536.7,3536.4,1.30194212]
[1641422975617,0.70708,3536.7,3536.3,8.629431]
[1641422976214,0.70708,3536.7,3536.3,7.14627666]
[1641422976413,0.70708,3536.7,3536.3,0.68684566]
[1641422977015,1.04008,3536.7,3536.3,0.68684566]
[1641422977617,1.04008,3536.7,3535.9,0.7137971]
[1641422978019,1.04008,3536.7,3536.0,0.00284212]
[1641422979064,0.70735,3536.4,3536.0,0.00284212]
[1641422979272,0.70735,3536.4,3535.9,9.71e-05]
[1641422979470,0.70735,3536.4,3534.6,4.459431]
[1641422979471,0.00170527,3536.3,3534.6,4.459431]
[1641422979671,0.01263321,3536.0,3534.6,4.459431]
[1641422979867,16.71,3535.8,3533.9,6.17]
[1641422980068,0.70768,3534.9,3534.0,4.60782935]
[1641422980270,0.70768,3534.9,3534.1,0.00341055]
[1641422980572,16.71,3534.8,3534.1,0.00341055]
[1641422980972,16.71,3534.8,3534.0,4.60782935]
[1641422980973,0.70776,3534.6,3534.0,4.60782935]
[1641422981173,0.70776,3534.6,3532.8,6.30291812]
[1641422981174,0.00341055,3534.7,3532.8,6.30291812]
[1641422981375,116.05,3534.2,3532.8,6.30291812]
[1641422981576,116.05,3534.2,3533.9,3.684e-05]
[1641422981773,5.6567,3534.1,3532.9,0.00572108]
[1641422981975,0.70803,3533.4,3531.6,0.7137971]
[1641422982172,0.70803,3533.4,3531.7,0.00682108]
[1641422982374,0.70802,3532.6,3531.7,0.00682108]
[1641422982611,0.70802,3532.6,3530.8,3.9122]
[1641422982812,18.12604,3532.7,3530.5,0.01285984]
[1641422982813,0.00454739,3532.5,3530.5,0.01285984]
[1641422983013,0.00454739,3532.5,3530.3,1.74240723]
[1641422983014,116.1,3532.4,3530.3,1.74240723]
[1641422983215,116.1,3532.4,3530.6,0.00170527]
[1641422983216,0.01253632,3531.5,3530.6,0.00170527]
[1641422983418,0.01253632,3531.5,3530.6,5.27e-06]
[1641422983419,0.70823,3531.1,3530.6,5.27e-06]
[1641422983613,0.70823,3531.1,3530.4,0.00114211]
[1641422983816,0.70823,3531.1,3529.9,0.01205587]
[1641422983817,0.00226843,3531.0,3529.9,0.01205587]
[1641422984016,0.00341054,3531.0,3529.9,0.01205587]
[1641422984213,2.79475874,3532.2,3529.8,0.00341054]
[1641422984214,0.00284211,3530.9,3529.8,0.00341054]
[1641422984414,1.41674,3530.5,3529.8,0.00341054]
[1641422984622,1.41674,3530.5,3528.9,3.7083565]
[1641422984623,1.41674,3530.5,3529.1,0.06554899]
[1641422984820,0.00341054,3530.4,3529.3,0.00284212]
[1641422985015,0.70842,3530.0,3529.3,0.00284212]
[1641422985216,0.70842,3530.0,3528.9,3.66741374]
[1641422985217,0.70842,3530.0,3528.9,2.94584212]
[1641422985416,0.00341054,3529.9,3529.0,0.00170527]
[1641422985818,0.00284212,3529.8,3529.0,0.00170527]
[1641422986217,0.00284212,3529.8,3528.9,2.94584212]
[1641422986218,0.71076369,3529.7,3528.9,2.89754739]
[1641422986461,0.71246896,3529.7,3528.9,2.89754739]
[1641422986664,0.00341054,3529.6,3529.1,0.00101478]
[1641422986860,0.333,3530.4,3529.1,0.00101478]
[1641422986861,0.03666967,3529.8,3529.1,0.00101478]
[1641422987060,0.333,3530.4,3529.2,0.00227369]
[1641422987061,17.388,3530.4,3529.2,0.00227369]
[1641422987263,1.41721,3529.5,3529.2,0.00227369]
[1641422987465,1.41721,3529.5,3529.1,1.478e-05]
[1641422987466,112.1,3529.4,3529.1,1.478e-05]
[1641422987664,112.10113684,3529.4,3529.1,1.478e-05]
[1641422987864,112.10113684,3529.4,3528.5,0.112831]
[1641422987865,4.05,3529.3,3528.5,0.112831]
[1641422988264,0.01220126,3529.1,3528.6,1.055e-05]
[1641422988468,0.01220126,3529.1,3527.4,0.7137971]
[1641422988469,122.52629,3529.0,3527.4,0.7137971]
[1641422988666,0.01217264,3528.3,3527.4,0.7137971]
[1641422988864,0.01217264,3528.3,3526.8,6.17]
[1641422988865,115.45,3528.1,3526.8,6.17]
[1641422989066,0.01236777,3527.5,3526.8,6.17]
[1641422989266,0.01236777,3527.5,3526.9,0.00341054]
[1641422989467,115.795,3527.4,3525.6,3.0]
[1641422989667,0.0122763,3526.6,3525.7,0.00682109]
[1641422989866,1.0,3527.3,3525.7,0.00682109]
[1641422989867,0.345,3526.8,3525.7,0.00682109]
[1641422990108,0.01209951,3526.5,3525.6,3.0]
[1641422990509,0.00397897,3526.4,3525.6,3.0]
[1641422990707,0.00397897,3526.4,3525.2,0.7137971]
[1641422990708,0.70943,3526.0,3525.2,9.71e-05]
[1641422990908,0.70943,3526.0,3522.9,2.70574116]
[1641422990909,114.8,3525.9,3522.9,2.70574116]
[1641422991115,0.01249156,3525.4,3525.3,7.369e-05]
[1641422991311,114.8,3525.3,3524.3,1.34]
[1641422991512,0.01249156,3525.4,3524.3,1.34]
[1641422991709,0.70957,3524.9,3523.7,0.01272612]
[1641422991909,0.70957,3524.9,3522.5,0.10037129]
[1641422992109,0.01023162,3524.8,3522.5,0.10037129]
[1641422992314,0.01023162,3524.8,3522.7,1.34]
[1641422992513,0.70957,3524.9,3522.7,1.34]
[1641422992514,0.01193689,3524.7,3522.7,1.34]
[1641422992715,0.01193689,3524.7,3522.8,0.06554899]
[1641422992913,0.01193689,3524.7,3522.1,2.78759055]
[1641422992914,0.01136847,3524.6,3522.3,0.7095862]
[1641422993117,0.01136847,3524.6,3523.4,1.34]
[1641422993316,0.01080004,3524.5,3523.4,1.34]
[1641422993720,0.01023162,3524.4,3523.5,3.62920312]
[1641422993956,0.01023162,3524.4,3523.5,3.69475211]
[1641422994258,3.162e-05,3524.6,3523.6,0.07009638]
[1641422994657,3.162e-05,3524.6,3523.8,4.36404387]
[1641422994857,0.333,3525.9,3524.0,29.7]
[1641422995057,0.333,3525.9,3524.1,4.16351386]
[1641422995259,0.00015793,3525.9,3524.2,29.7]
[1641422995458,0.01254671,3528.0,3524.4,31.11775]
[1641422995659,0.01254671,3528.0,3524.5,2.82351386]
[1641422995860,0.00511581,3526.7,3524.5,5.19645236]
[1641422996059,1.581e-05,3526.7,3525.5,0.7088576]
[1641422996266,4.739e-05,3526.6,3525.6,3.82201468]
[1641422996561,4.59522725,3528.2,3525.6,3.82201468]
[1641422996562,0.00233689,3527.9,3525.7,47.37021582]
[1641422996765,2.725e-05,3528.2,3526.0,0.01244042]
[1641422996966,4.80663771,3529.0,3526.9,27.1]
[1641422997162,3.98838997,3529.5,3527.8,0.72093431]
[1641422997163,8.997e-05,3529.5,3527.8,0.72093431]
[1641422997363,7.62344063,3530.1,3528.0,16.71]
[1641422997606,7.62344063,3530.1,3528.2,1.0]
[1641422997804,7.62344063,3530.1,3528.3,3.13034638]
[1641422997805,5.266e-05,3530.0,3528.3,3.13034638]
[1641422998006,5.266e-05,3530.0,3529.1,16.71]
[1641422998206,5.266e-05,3530.0,3529.2,2.78534638]
[1641422998405,0.7137971,3530.6,3529.5,0.7080084]
[1641422998605,0.7137971,3530.6,3529.6,2.78534638]
[1641422998606,9.71e-05,3530.6,3529.6,2.78534638]
[1641422998807,9.71e-05,3530.6,3529.6,3.08762007]
[1641422998808,5.27e-06,3530.3,3529.6,3.08762007]
[1641422999004,3.7632,3532.6,3529.6,3.08762007]
[1641422999005,3.7632,3532.6,3530.1,21.1]
[1641422999206,0.72607324,3532.7,3530.1,21.1]
[1641422999207,0.7137971,3532.7,3530.2,2.78534638]
[1641422999406,0.7137971,3532.7,3530.5,0.01202059]
[1641422999606,0.7137971,3532.7,3531.1,1.4154516]
[1641422999806,9.71e-05,3532.7,3531.4,16.71]
[1641423000006,0.01307374,3532.6,3531.6,16.71]
[1641423000213,7.374e-05,3532.6,3532.0,1.7]
[1641423000408,0.01241393,3534.6,3532.0,1.7]
[1641423000409,0.01241393,3534.6,3532.2,16.71]
[1641423000605,0.01241393,3534.6,3532.3,3.78534638]
[1641423000808,0.01080005,3534.5,3532.9,1.4147988]
[1641423001209,0.01241393,3534.6,3533.0,1.7]
[1641423001210,0.01023163,3534.4,3533.0,1.7]
[1641423001509,0.01241393,3534.6,3533.0,1.7]
[1641423001510,0.0096632,3534.3,3533.0,1.7]
[1641423001905,0.333,3534.4,3533.0,1.7]
[1641423001906,0.00909478,3534.2,3533.0,1.7]
[1641423002309,0.00852635,3534.1,3533.1,2.8079572]
[1641423002710,0.00795793,3534.0,3533.1,3.1079572]
[1641423002909,0.00795793,3534.0,3533.3,0.7073926]
[1641423003112,0.333,3534.4,3533.7,2.46]
[1641423003510,0.00227369,3534.3,3533.7,2.46]
[1641423004014,0.00170527,3534.2,3533.7,2.46]
[1641423004411,0.00113684,3534.1,3533.7,2.46]
[1641423005214,0.666,3534.4,3533.7,2.46]
[1641423005215,0.65414599,3534.4,3533.7,2.46]
[1641423005419,0.65414599,3534.4,3533.4,0.00284212]
[1641423005616,0.65414599,3534.4,3532.5,2.72828506]
[1641423005617,0.00113685,3534.3,3533.8,0.00170527]
[1641423005815,0.00113685,3534.3,3532.5,2.72828506]
[1641423005816,0.00113685,3534.3,3532.6,0.00852635]
[1641423006217,0.00113685,3534.3,3532.4,0.07521218]
[1641423006418,0.00113685,3534.3,3533.6,1.3328857]
[1641423006816,0.00113685,3534.3,3533.7,0.00227369]
[1641423007020,0.00113685,3534.3,3533.7,2.71245794]
[1641423007219,0.00113685,3534.3,3533.7,0.00227369]
[1641423007418,0.00113685,3534.3,3534.0,2.46]
[1641423007819,0.33413685,3534.3,3534.1,1.3328857]
[1641423008619,0.33413685,3534.3,3534.0,2.46]
[1641423009060,3.13413685,3534.3,3534.0,2.46]
[1641423009857,3.46713685,3534.3,3534.0,2.46]
[1641423010659,3.46713685,3534.3,3533.7,0.00227369]
[1641423010660,3.46713685,3534.3,3533.7,7.369e-05]
[1641423010661,3.47936721,3534.3,3533.7,7.369e-05]
[1641423010858,3.47936721,3534.3,3532.8,2.67658638]
[1641423010859,0.0128176,3533.8,3532.8,2.67658638]
[1641423011060,0.0128176,3533.8,3533.5,0.00113685]
[1641423011461,0.00284212,3534.2,3533.2,0.00284212]
[1641423011764,0.00227369,3534.1,3533.2,0.00284212]
[1641423012160,0.00170527,3534.0,3533.2,0.00284212]
[1641423012364,0.01245761,3533.7,3533.2,4.212e-05]
[1641423012613,0.01245761,3533.7,3532.5,0.00402108]
[1641423012815,0.34723158,3533.6,3532.2,0.00572635]
[1641423013013,6.00803158,3533.6,3531.3,4.45602564]
[1641423013215,6.00803158,3533.6,3531.9,2.68608936]
[1641423013216,0.72084316,3532.9,3531.9,2.68608936]
[1641423013414,0.345,3532.8,3531.9,8.936e-05]
[1641423013614,0.34841054,3532.8,3531.9,8.936e-05]
[1641423013814,0.00284212,3532.7,3531.4,0.00454739]
[1641423014017,0.01272454,3532.1,3531.4,4.739e-05]
[1641423014218,0.01272454,3532.1,3530.9,2.564e-05]
[1641423014219,0.01205684,3531.5,3530.9,2.564e-05]
[1641423014422,0.70829,3531.8,3530.9,2.564e-05]
[1641423014423,0.01275774,3531.3,3530.9,2.564e-05]
[1641423014620,109.6,3531.1,3530.9,2.564e-05]
[1641423014818,115.2608,3531.0,3530.9,2.564e-05]
[1641423015020,115.61874921,3531.0,3530.9,2.564e-05]
[1641423015318,0.70857,3530.2,3528.4,4.26626503]
[1641423015717,0.70857,3530.2,3528.4,0.40867562]
[1641423015718,0.35731461,3530.1,3528.4,0.40867562]
[1641423015918,0.0121142,3529.3,3528.4,7.562e-05]
[1641423016367,0.00397897,3529.2,3528.4,7.562e-05]
[1641423016762,0.00341054,3529.1,3528.4,7.562e-05]
[1641423016971,0.70884,3528.8,3527.4,0.7137971]